bitfinex-derivatives/quotes_BTCF0:USTF0_20251002
["timestamp","ask_amount","ask_price","bid_price","bid_amount"]
[1759430104925,0.32147609,120150.0,120140.0,0.1180368]
[1759430105126,0.70429896,120150.0,120140.0,0.1180368]
[1759430106721,0.78747678,120150.0,120140.0,0.1180368]
[1759430107622,0.68227609,120150.0,120140.0,0.1180368]
[1759430107927,0.70429038,120150.0,120140.0,0.1180368]
[1759430109333,1.10895267,120150.0,120130.0,0.4788441]
[1759430109526,1.39835218,120140.0,120130.0,0.4788441]
[1759430110620,1.07687609,120140.0,120130.0,0.4788441]
[1759430110821,1.39835218,120140.0,120130.0,0.4788441]
[1759430111128,1.07687609,120140.0,120130.0,0.4788441]
[1759430111530,0.32147609,120140.0,120130.0,0.1180441]
[1759430111727,0.7554,120140.0,120130.0,0.43952019]
[1759430111923,1.07687609,120140.0,120130.0,0.43952019]
[1759430112125,0.32147609,120150.0,120140.0,0.0962716]
[1759430112330,0.77741533,120150.0,120140.0,0.43935769]
[1759430112925,1.09889142,120150.0,120140.0,0.1178816]
[1759430113128,1.09889142,120150.0,120140.0,0.43935769]
[1759430114425,0.77741533,120150.0,120140.0,0.43935769]
[1759430114634,1.09889142,120150.0,120140.0,0.43935769]
[1759430115829,0.34349142,120150.0,120140.0,0.43935769]
[1759430116025,0.77741533,120150.0,120140.0,0.43935769]
[1759430116229,0.7554,120150.0,120140.0,0.1178816]
[1759430116624,0.76530626,120160.0,120150.0,0.01308]
[1759430116823,1.54272046,120160.0,120150.0,0.03469]
[1759430118032,1.54272046,120160.0,120150.0,0.01308]
[1759430118231,1.54272046,120160.0,120140.0,0.1178816]
[1759430118535,0.40451246,120150.0,120140.0,0.1178816]
[1759430118936,0.083186,120150.0,120140.0,0.1178816]
[1759430119136,0.42653104,120150.0,120140.0,0.03469]
[1759430119340,0.42653104,120150.0,120140.0,0.117883]
[1759430120236,0.42653104,120150.0,120140.0,0.01308]
[1759430120536,0.42653514,120150.0,120130.0,0.4788474]
[1759430120743,1.07672646,120140.0,120130.0,0.4788474]
[1759430121235,0.32132646,120140.0,120130.0,0.4788474]
[1759430121540,1.07672646,120140.0,120130.0,0.4788474]
[1759430121842,0.7554,120140.0,120130.0,0.4788474]
[1759430123333,0.32132646,120140.0,120130.0,0.4788474]
[1759430123840,0.7554,120140.0,120130.0,0.4788474]
[1759430124045,0.4439832,120160.0,120150.0,0.03512]
[1759430124250,1.5427507,120160.0,120150.0,0.03512]
[1759430124649,0.7873507,120160.0,120150.0,0.03512]
[1759430124851,1.5427507,120160.0,120150.0,0.03512]
[1759430126152,0.083193,120140.0,120130.0,0.1181069]
[1759430126348,1.07672646,120140.0,120130.0,0.4789069]
[1759430126549,1.07672646,120140.0,120130.0,0.1181069]
[1759430129551,1.09877055,120140.0,120130.0,0.1181069]
[1759430130053,0.77744424,120140.0,120130.0,0.1181069]
[1759430130350,1.0987707,120140.0,120130.0,0.1181069]
[1759430130854,1.07672646,120140.0,120130.0,0.1181069]
[1759430131754,1.09877072,120140.0,120130.0,0.1181069]
[1759430132350,1.18196372,120140.0,120130.0,0.01324]
[1759430132558,1.94276372,120140.0,120120.0,0.03564]
[1759430132758,0.32132646,120130.0,120120.0,0.03564]
[1759430133251,0.40452636,120130.0,120120.0,0.03564]
[1759430133953,0.32132646,120130.0,120120.0,0.03564]
[1759430134355,1.07672646,120130.0,120120.0,0.1188468]
[1759430134658,0.4439975,120140.0,120130.0,0.0355]
[1759430134659,0.3608,120140.0,120130.0,0.0355]
[1759430134847,0.78776395,120150.0,120140.0,0.0355]
[1759430135044,1.56520132,120150.0,120140.0,0.0355]
[1759430136255,1.59503458,120150.0,120140.0,0.01383]
[1759430136554,1.59503458,120150.0,120130.0,0.1186993]
[1759430136754,0.32132646,120140.0,120130.0,0.1186993]
[1759430136956,0.34336383,120140.0,120130.0,0.1186993]
[1759430137555,1.09876383,120140.0,120130.0,0.1186993]
[1759430137956,0.77743737,120140.0,120130.0,0.1186993]
[1759430138257,1.09876383,120140.0,120130.0,0.1186993]
[1759430139753,0.34336383,120140.0,120130.0,0.1186993]
[1759430139959,1.09876383,120140.0,120130.0,0.1186993]
[1759430140255,1.18195673,120140.0,120130.0,0.1186993]
[1759430142958,1.18195673,120140.0,120130.0,0.0355]
[1759430144251,1.54275673,120140.0,120130.0,0.0355]
[1759430145558,1.54275673,120140.0,120130.0,0.01383]
[1759430146364,1.54275673,120140.0,120130.0,0.0355]
[1759430146864,1.54275673,120140.0,120120.0,0.4796403]
[1759430147163,0.32132646,120130.0,120120.0,0.1188403]
[1759430148262,1.07672646,120130.0,120120.0,0.1188403]
[1759430148863,1.14223631,120130.0,120120.0,0.1188403]
[1759430150159,0.82090985,120130.0,120120.0,0.1188403]
[1759430150356,0.38683631,120130.0,120120.0,0.1188403]
[1759430150656,1.14223631,120130.0,120120.0,0.1188403]
[1759430153762,1.22543621,120130.0,120120.0,0.03564]
[1759430154066,0.38683631,120130.0,120120.0,0.03564]
[1759430154270,0.82090985,120130.0,120120.0,0.1188468]
[1759430154468,0.82090985,120130.0,120120.0,0.44017326]
[1759430154666,0.06550985,120130.0,120120.0,0.44017326]
[1759430154966,0.7554,120130.0,120120.0,0.80097326]
[1759430155267,0.443993,120140.0,120130.0,0.0355]
[1759430155467,0.86062709,120140.0,120130.0,0.0355]
[1759430155863,1.18195355,120140.0,120130.0,0.0355]
[1759430157072,0.0831998,120130.0,120120.0,0.03646]
[1759430157270,0.40452626,120130.0,120120.0,0.1196668]
[1759430158270,0.47022234,120130.0,120120.0,0.1196668]
[1759430158571,0.38702254,120130.0,120120.0,0.1196668]
[1759430159170,0.4090654,120130.0,120120.0,0.1196668]
[1759430160172,0.08773894,120130.0,120120.0,0.1196668]
[1759430160372,0.84313894,120130.0,120120.0,0.44099326]
[1759430160774,0.06569608,120130.0,120120.0,0.44099326]
[1759430161071,0.0831977,120140.0,120130.0,0.03513]
[1759430161268,0.86064468,120140.0,120130.0,0.03513]
[1759430162675,0.86064468,120140.0,120130.0,0.1183299]
[1759430162866,0.10524468,120140.0,120130.0,0.1183299]
[1759430163067,0.86064468,120140.0,120130.0,0.1183299]
[1759430165767,0.10524468,120140.0,120130.0,0.1183299]
[1759430165969,0.02204698,120140.0,120130.0,1.20045636]
[1759430166272,2.04924,120160.0,120150.0,0.118316]
[1759430166474,2.90985954,120160.0,120150.0,0.118316]
[1759430167170,0.02204054,120160.0,120150.0,0.118316]
[1759430167372,0.77744054,120160.0,120150.0,0.479116]
[1759430167575,0.77744054,120160.0,120150.0,0.39593]
[1759430167776,1.1819461,120160.0,120150.0,0.39593]
[1759430167975,1.1819461,120160.0,120150.0,0.479116]
[1759430168574,1.098767,120160.0,120150.0,0.479116]
[1759430173070,1.07672646,120160.0,120150.0,0.479116]
[1759430174878,1.15990546,120160.0,120150.0,0.39593]
[1759430175380,1.15990546,120160.0,120150.0,0.37344]
[1759430175584,1.15990546,120160.0,120150.0,0.39593]
[1759430175768,0.838579,120160.0,120150.0,0.03513]
[1759430175974,0.32132646,120160.0,120150.0,0.118316]
[1759430176175,0.77727386,120160.0,120150.0,0.118316]
[1759430176376,1.41987048,120160.0,120150.0,0.118316]
[1759430176678,1.50304948,120160.0,120150.0,0.118316]
[1759430178182,0.74776948,120160.0,120150.0,0.118316]
[1759430178377,1.41983048,120160.0,120150.0,0.479116]
[1759430178679,1.09853217,120160.0,120150.0,0.118316]
[1759430179081,1.09853217,120160.0,120150.0,0.479116]
[1759430179280,1.09853217,120160.0,120150.0,0.118316]
[1759430179682,1.18171117,120160.0,120150.0,0.118316]
[1759430179982,1.50300948,120160.0,120150.0,0.118316]
[1759430180288,1.18171117,120160.0,120150.0,0.479116]
[1759430180982,1.09853217,120160.0,120150.0,0.479116]
[1759430181187,0.02199386,120160.0,120150.0,1.12171262]
[1759430181378,0.75524,120160.0,120150.0,0.479116]
[1759430181582,0.77723093,120160.0,120150.0,1.20041431]
[1759430181782,1.18170824,120160.0,120150.0,1.11722831]
[1759430181986,1.18170824,120160.0,120150.0,0.79593]
[1759430182181,1.18170824,120160.0,120150.0,1.11722831]
[1759430182488,0.86040993,120160.0,120150.0,0.79593]
[1759430182785,1.18170824,120160.0,120150.0,1.11722831]
[1759430183188,1.18170824,120160.0,120150.0,0.79593]
[1759430183387,1.18170824,120160.0,120150.0,1.11722831]
[1759430183686,1.18170824,120160.0,120150.0,0.79593]
[1759430183986,1.18170824,120160.0,120150.0,0.8791159]
[1759430184186,1.18170824,120160.0,120150.0,1.20041421]
[1759430184486,1.15971731,120160.0,120150.0,1.20041421]
[1759430186186,1.18171246,120160.0,120150.0,1.20041421]
[1759430186376,1.18171246,120160.0,120150.0,0.79593]
[1759430186882,1.18171246,120160.0,120150.0,1.11722831]
[1759430187083,1.18171246,120160.0,120150.0,0.79593]
[1759430187283,1.18171246,120160.0,120150.0,0.75642831]
[1759430187790,1.18171246,120160.0,120150.0,0.43513]
[1759430188484,1.50301077,120160.0,120150.0,0.03513]
[1759430188682,1.50301077,120160.0,120150.0,0.01264]
[1759430189391,1.50301077,120160.0,120150.0,0.03549]
[1759430189587,1.86381077,120160.0,120150.0,0.03549]
[1759430189787,1.50301077,120160.0,120150.0,0.03549]
[1759430190089,1.50301077,120160.0,120150.0,0.01264]
[1759430190991,1.50301077,120160.0,120140.0,0.4794786]
[1759430191294,0.32129831,120150.0,120140.0,0.4794786]
[1759430191488,0.838419,120160.0,120140.0,0.4794786]
[1759430191689,0.32129831,120150.0,120140.0,0.4794786]
[1759430192294,0.34331464,120150.0,120140.0,0.4794786]
[1759430193682,0.74779885,120150.0,120140.0,0.03549]
[1759430193887,1.14780625,120150.0,120140.0,0.01264]
[1759430194593,1.59179905,120150.0,120130.0,0.39629]
[1759430194792,1.39775662,120140.0,120130.0,0.39629]
[1759430194995,1.50297315,120140.0,120130.0,0.39629]
[1759430196191,1.48094942,120140.0,120130.0,0.03549]
[1759430196595,1.50298622,120140.0,120130.0,0.03549]
[1759430197289,0.72578942,120140.0,120130.0,0.03549]
[1759430197494,1.48094942,120140.0,120130.0,0.03549]
[1759430197691,0.72578942,120140.0,120130.0,0.03549]
[1759430197895,1.48094942,120140.0,120130.0,0.03549]
[1759430198793,0.72578942,120140.0,120130.0,0.1186898]
[1759430198990,1.48094942,120140.0,120130.0,0.1186898]
[1759430199196,1.48094942,120140.0,120130.0,0.03549]
[1759430200196,1.39775662,120140.0,120130.0,0.1186898]
[1759430201193,0.64259662,120140.0,120130.0,0.1186898]
[1759430201397,0.0831862,120150.0,120140.0,0.03645]
[1759430201585,0.76528231,120160.0,120150.0,0.03645]
[1759430201895,1.54250134,120160.0,120150.0,0.03645]
[1759430202094,0.78730134,120160.0,120150.0,0.03645]
[1759430202496,1.54250134,120160.0,120150.0,0.03645]
[1759430202696,1.54250134,120160.0,120150.0,0.35774831]
[1759430202897,1.54250134,120160.0,120150.0,0.03645]
[1759430203487,0.78730134,120160.0,120150.0,0.03645]
[1759430203687,0.83968434,120170.0,120160.0,0.119629]
[1759430203900,1.61690081,120170.0,120160.0,0.44092731]
[1759430204297,1.61690081,120170.0,120160.0,0.119629]
[1759430205194,0.86170081,120170.0,120160.0,0.119629]
[1759430205399,1.61686081,120170.0,120160.0,0.119629]
[1759430205599,0.86170081,120170.0,120160.0,0.119629]
[1759430205797,1.61686081,120170.0,120160.0,0.119629]
[1759430206187,1.61686081,120170.0,120160.0,0.03645]
[1759430206699,1.93815912,120170.0,120160.0,0.0136]
[1759430207600,1.93815912,120170.0,120160.0,0.0967789]
[1759430207796,1.61686081,120170.0,120160.0,0.0967789]
[1759430208095,1.93815912,120170.0,120160.0,0.1196289]
[1759430208300,1.61686081,120170.0,120160.0,0.1196289]
[1759430208502,1.93815912,120170.0,120160.0,0.1196289]
[1759430210306,1.93815912,120170.0,120160.0,0.0967789]
[1759430213005,1.2955625,120170.0,120160.0,0.1196289]
[1759430213200,1.93815912,120170.0,120160.0,0.1196289]
[1759430213903,1.61686081,120170.0,120160.0,0.1196289]
[1759430214504,1.93815912,120170.0,120160.0,0.1196289]
[1759430215705,1.57735912,120170.0,120160.0,0.1196289]
[1759430216003,1.93815912,120170.0,120160.0,0.1196289]
[1759430221105,1.57735912,120170.0,120160.0,0.1196289]
[1759430221311,1.93815912,120170.0,120160.0,0.1196289]
[1759430221805,0.0964304,120170.0,120160.0,0.1196289]
[1759430222010,1.15079224,120170.0,120160.0,0.44092721]
[1759430222204,1.17280067,120170.0,120160.0,0.44092721]
[1759430222407,0.41772067,120170.0,120160.0,0.44092721]
[1759430222608,0.09642236,120170.0,120160.0,0.44092721]
[1759430222803,1.17276067,120170.0,120160.0,0.44092721]
[1759430223306,0.09642236,120170.0,120160.0,0.76222552]
[1759430223613,0.85146236,120170.0,120160.0,0.76222552]
[1759430223912,0.85146236,120170.0,120160.0,0.44092721]
[1759430224107,1.17276067,120170.0,120160.0,0.44092721]
[1759430224406,0.85146236,120170.0,120160.0,0.44092721]
[1759430224811,1.17276067,120170.0,120160.0,0.44092721]
[1759430227722,0.07441393,120170.0,120160.0,1.12302552]
[1759430228020,0.755,120170.0,120160.0,1.12302552]
[1759430228209,0.32129831,120180.0,120170.0,0.0831719]
[1759430228409,0.78552155,120180.0,120170.0,0.44112021]
[1759430228613,0.35181986,120180.0,120170.0,0.44112021]
[1759430228815,0.09582456,120180.0,120170.0,0.84112021]
[1759430229021,0.82881685,120180.0,120170.0,0.5198219]
[1759430229221,0.82881685,120180.0,120170.0,1.20192021]
[1759430229525,0.82881685,120180.0,120170.0,0.8806219]
[1759430229723,0.82881685,120180.0,120170.0,1.20192021]
[1759430229920,0.07381685,120180.0,120170.0,1.20192021]
[1759430230225,0.755,120180.0,120170.0,1.20192021]
[1759430231325,0.46640095,120200.0,120190.0,0.03665]
[1759430231517,0.8097088,120200.0,120190.0,0.03665]
[1759430231722,1.09826785,120200.0,120190.0,0.480608]
[1759430231919,0.02200954,120200.0,120190.0,0.80190631]
[1759430232122,0.78544671,120200.0,120190.0,0.80190631]
[1759430232524,0.78543446,120200.0,120190.0,0.80190631]
[1759430232926,0.82897528,120200.0,120190.0,0.80190631]
[1759430235424,0.07401528,120200.0,120190.0,0.80190631]
[1759430235616,0.75492,120200.0,120190.0,0.80190631]
[1759430236231,0.77689097,120200.0,120190.0,0.80190631]
[1759430236527,0.78528623,120200.0,120190.0,0.80190631]
[1759430237122,0.85205476,120200.0,120190.0,0.80190631]
[1759430237522,0.83008379,120200.0,120190.0,0.80190631]
[1759430237724,0.85204414,120200.0,120190.0,0.80190631]
[1759430238023,0.85204414,120200.0,120190.0,0.480608]
[1759430238228,0.85204414,120200.0,120190.0,0.80163487]
[1759430241532,1.17307101,120200.0,120190.0,0.39745]
[1759430241722,1.17307101,120200.0,120190.0,0.0970679]
[1759430242125,1.17307101,120200.0,120190.0,0.1198079]
[1759430242326,1.17307101,120200.0,120190.0,0.4806079]
[1759430244936,0.85188414,120200.0,120190.0,0.4806079]
[1759430245137,0.85188414,120200.0,120190.0,0.80163477]
[1759430245537,0.85188414,120200.0,120190.0,0.4806079]
[1759430246338,1.17291101,120200.0,120190.0,0.4806079]
[1759430246640,1.25606201,120200.0,120190.0,0.03665]
[1759430246841,1.23410166,120200.0,120190.0,0.01391]
[1759430247337,1.23410166,120200.0,120180.0,0.37471]
[1759430247338,0.0831579,120190.0,120180.0,0.39672]
[1759430247542,0.40418477,120190.0,120180.0,0.4798848]
[1759430247742,0.40418477,120190.0,120180.0,0.03592]
[1759430247935,0.0831579,120190.0,120180.0,0.01391]
[1759430248138,0.40418477,120190.0,120180.0,0.01391]
[1759430248832,1.18694898,120190.0,120170.0,0.39672]
[1759430249042,1.39677374,120180.0,120170.0,0.03592]
[1759430249240,1.07574687,120180.0,120170.0,0.03592]
[1759430250634,0.32102687,120180.0,120170.0,0.1190917]
[1759430250831,0.32102687,120180.0,120170.0,0.4798917]
[1759430251033,0.68182687,120190.0,120180.0,0.03465]
[1759430251233,0.77669499,120190.0,120180.0,0.03465]
[1759430251434,1.09772186,120190.0,120180.0,0.03465]
[1759430251637,0.34300186,120190.0,120180.0,0.03465]
[1759430251833,1.09772186,120190.0,120180.0,0.03465]
[1759430252239,1.18087966,120190.0,120180.0,0.03465]
[1759430253239,1.09772186,120190.0,120180.0,0.03465]
[1759430253742,0.77669499,120190.0,120180.0,0.79964167]
[1759430253943,0.75472,120190.0,120180.0,0.79964167]
[1759430254636,0.39604041,120200.0,120190.0,0.1178078]
[1759430254840,1.15076041,120200.0,120190.0,0.4786078]
[1759430255238,0.82973354,120200.0,120190.0,0.4786078]
[1759430257141,0.07501354,120200.0,120190.0,0.4786078]
[1759430257335,0.02244525,120220.0,120210.0,0.117794]
[1759430257541,0.3608,120230.0,120220.0,0.1177871]
[1759430257735,1.52445676,120230.0,120220.0,0.1177871]
[1759430258137,1.53287585,120230.0,120220.0,0.1177871]
[1759430258743,1.53283585,120230.0,120220.0,0.1177871]
[1759430259243,1.17203585,120230.0,120220.0,0.1177871]
[1759430259942,1.17203585,120230.0,120220.0,0.01264]
[1759430260742,1.17203585,120230.0,120220.0,0.095777]
[1759430262745,1.17203585,120230.0,120220.0,0.117787]
[1759430266244,0.85100898,120230.0,120220.0,0.117787]
[1759430266444,0.41735585,120230.0,120220.0,0.117787]
[1759430266653,1.17191585,120230.0,120220.0,0.117787]
[1759430267951,0.41735585,120230.0,120220.0,0.117787]
[1759430268248,1.17191585,120230.0,120220.0,0.117787]
[1759430268448,1.17191585,120230.0,120220.0,0.1177872]
[1759430269048,0.41735585,120230.0,120220.0,0.1177872]
[1759430269352,1.17191585,120230.0,120220.0,0.1177872]
[1759430270343,0.41735585,120230.0,120220.0,0.1177872]
[1759430270650,1.17187585,120230.0,120220.0,0.1177872]
[1759430271147,0.09632898,120230.0,120220.0,0.43881407]
[1759430271349,0.85084898,120230.0,120220.0,0.43881407]
[1759430272849,0.85084898,120230.0,120220.0,0.1177872]
[1759430274354,0.85084898,120230.0,120220.0,0.4785872]
[1759430274951,0.09632898,120230.0,120220.0,0.4785872]
[1759430275247,0.07433315,120230.0,120220.0,0.79961407]
[1759430275448,0.38324525,120250.0,120240.0,0.03503]
[1759430275751,1.22034896,120250.0,120240.0,0.03503]
[1759430275946,0.46586896,120250.0,120240.0,0.03503]
[1759430276251,1.24279421,120250.0,120240.0,0.1181533]
[1759430276648,1.25096473,120250.0,120240.0,0.1181533]
[1759430276849,1.5719916,120250.0,120240.0,0.1181533]
[1759430277151,1.63845979,120250.0,120240.0,0.1181533]
[1759430277553,0.44006349,120250.0,120240.0,0.4789533]
[1759430277752,0.85107137,120250.0,120240.0,0.79998017]
[1759430278153,0.85107137,120250.0,120240.0,0.4789533]
[1759430281054,1.17209824,120250.0,120240.0,0.4789533]
[1759430282656,0.85107137,120250.0,120240.0,0.4789533]
[1759430282859,1.17209824,120250.0,120240.0,0.4789533]
[1759430283354,1.19454349,120250.0,120240.0,0.4789533]
[1759430283554,0.44006349,120250.0,120240.0,0.4789533]
[1759430283757,0.11903662,120250.0,120240.0,0.79998017]
[1759430283961,0.09659137,120250.0,120240.0,0.79998017]
[1759430284256,0.85099137,120250.0,120240.0,0.79998017]
[1759430284649,0.09659137,120250.0,120240.0,0.79998017]
[1759430284854,0.09659137,120250.0,120240.0,1.19998017]
[1759430285054,0.78448318,120250.0,120240.0,1.19998017]
[1759430285254,0.03012318,120250.0,120240.0,1.19998017]
[1759430285458,0.78448318,120250.0,120240.0,0.8789533]
[1759430286357,0.76253052,120250.0,120240.0,0.8789533]
[1759430286946,0.76253052,120250.0,120240.0,1.19998017]
[1759430287148,0.75436,120250.0,120240.0,1.19998017]
[1759430287345,0.75436,120250.0,120240.0,0.8789533]
[1759430287753,0.75436,120250.0,120240.0,1.19998017]
[1759430288558,0.75436,120250.0,120240.0,0.8789533]
[1759430290764,0.76248774,120250.0,120240.0,0.8789533]
[1759430291159,0.76244774,120250.0,120240.0,0.8789533]
[1759430291762,0.76244774,120250.0,120240.0,1.19998017]
[1759430293759,1.08347461,120250.0,120240.0,0.4789533]
[1759430294160,0.32915461,120250.0,120240.0,0.4789533]
[1759430294361,0.76240774,120250.0,120240.0,0.4789533]
[1759430295363,0.78437876,120250.0,120240.0,0.4789533]
[1759430295565,0.03009876,120250.0,120240.0,0.4789533]
[1759430295766,0.78433876,120250.0,120240.0,0.79998017]
[1759430295962,0.03009876,120250.0,120240.0,0.79998017]
[1759430296164,0.78433876,120250.0,120240.0,0.79998017]
[1759430296466,0.76236774,120250.0,120240.0,0.79998017]
[1759430296668,0.78433996,120250.0,120240.0,0.79998017]
[1759430297065,0.78433996,120250.0,120240.0,0.4789533]
[1759430297467,1.10536683,120250.0,120240.0,0.4789533]
[1759430297768,0.78433996,120250.0,120240.0,0.4789533]
[1759430297967,1.10536683,120250.0,120240.0,0.4789533]
[1759430298369,1.10514503,120250.0,120240.0,0.79975837]
[1759430298769,1.10514503,120250.0,120240.0,0.4789533]
[1759430299770,1.8259501,120250.0,120240.0,0.01304]
[1759430300071,1.8259572,120250.0,120240.0,0.01304]
[1759430300459,1.18430706,120250.0,120240.0,0.118153]
[1759430300868,1.8259172,120250.0,120240.0,0.118153]
[1759430301170,1.9090333,120250.0,120230.0,0.478956]
[1759430301368,0.64161014,120240.0,120230.0,0.478956]
[1759430301572,0.74672263,120240.0,120230.0,0.01304]
[1759430301769,1.8283315,120240.0,120220.0,0.03463]
[1759430301969,1.39581014,120230.0,120220.0,0.03463]
[1759430302159,1.41779963,120230.0,120220.0,0.03463]
[1759430302366,1.90092973,120230.0,120210.0,0.456579]
[1759430302569,0.64161014,120220.0,120210.0,0.37344]
[1759430302772,0.74673663,120220.0,120210.0,0.37344]
[1759430302965,0.74673663,120220.0,120210.0,0.01264]
[1759430303272,0.0831438,120210.0,120200.0,0.37384]
[1759430303471,0.42594081,120210.0,120200.0,0.03503]
[1759430303674,1.18014081,120210.0,120200.0,0.03503]
[1759430304166,1.90094588,120210.0,120190.0,0.3966]
[1759430304370,0.64161014,120200.0,120190.0,0.4797576]
[1759430305070,0.64973781,120200.0,120190.0,0.4797576]
[1759430305768,1.40397781,120200.0,120190.0,0.4797576]
[1759430308872,0.64973781,120200.0,120190.0,0.4797576]
[1759430309072,1.40405781,120200.0,120190.0,0.4797576]
[1759430310081,0.64973781,120200.0,120190.0,0.4797576]
[1759430310381,1.40405781,120200.0,120190.0,0.4797576]
[1759430310584,0.64973781,120200.0,120190.0,0.4797576]
[1759430311066,1.40409781,120200.0,120190.0,0.4797576]
[1759430312577,0.64973781,120200.0,120190.0,0.4797576]
[1759430312785,1.40409781,120200.0,120190.0,0.4797576]
[1759430313079,1.40409781,120200.0,120190.0,0.3966]
[1759430313579,1.40409781,120200.0,120190.0,0.4797575]
[1759430314074,0.64973781,120200.0,120190.0,0.4797575]
[1759430314576,0.32893274,120200.0,120190.0,0.80056257]
[1759430314777,1.08333274,120200.0,120190.0,0.80056257]
[1759430315168,1.40413781,120200.0,120190.0,0.4797575]
[1759430315577,0.00812767,120200.0,120190.0,0.4797575]
[1759430315777,1.39601014,120200.0,120190.0,0.4797575]
[1759430318171,0.7625414,120200.0,120190.0,0.4797575]
[1759430318373,1.40415154,120200.0,120190.0,0.4797575]
[1759430320675,1.40415154,120200.0,120190.0,0.3966]
[1759430320876,1.40415154,120200.0,120180.0,0.4570038]
[1759430320877,2.20810721,120200.0,120180.0,0.39565]
[1759430321175,2.20810721,120200.0,120180.0,0.4788144]
[1759430321176,1.07520507,120190.0,120180.0,0.4788144]
[1759430321374,1.07520507,120190.0,120180.0,0.79961947]
[1759430321576,0.32080507,120190.0,120180.0,0.4788144]
[1759430321773,0.0081414,120200.0,120190.0,0.03549]
[1759430321978,1.07520507,120200.0,120190.0,0.35629507]
[1759430322479,1.39601014,120200.0,120190.0,0.03549]
[1759430322678,1.07520507,120200.0,120190.0,0.03549]
[1759430323078,1.39601014,120200.0,120190.0,0.1186475]
[1759430323279,0.64161014,120200.0,120190.0,0.1186475]
[1759430323477,0.7544,120200.0,120190.0,0.1186475]
[1759430323679,1.07520507,120200.0,120190.0,0.43945257]
[1759430324382,1.07520507,120200.0,120190.0,0.1186475]
[1759430324785,1.08339534,120200.0,120190.0,0.1186475]
[1759430326089,0.32899534,120200.0,120190.0,0.43945257]
[1759430326382,1.08343534,120200.0,120190.0,0.43945257]
[1759430327290,1.10538662,120200.0,120190.0,0.43945257]
[1759430328688,0.35094662,120200.0,120190.0,0.43945257]
[1759430328987,1.10542662,120200.0,120190.0,0.43945257]
[1759430329284,0.03014155,120200.0,120190.0,0.80025257]
[1759430329480,0.00819027,120200.0,120190.0,0.80025257]
[1759430329681,0.74784931,120210.0,120200.0,0.1186406]
[1759430329892,1.52426343,120210.0,120200.0,0.43944567]
[1759430330083,1.16346343,120210.0,120200.0,0.43944567]
[1759430330987,1.16346343,120210.0,120200.0,0.80024567]
[1759430331385,0.08821836,120210.0,120200.0,1.12105074]
[1759430331689,0.85103307,120210.0,120200.0,0.80024567]
[1759430332190,1.17183814,120210.0,120200.0,0.80024567]
[1759430332892,0.09655307,120210.0,120200.0,0.80024567]
[1759430333090,0.72431307,120210.0,120200.0,0.4794406]
[1759430333285,0.72431307,120210.0,120200.0,0.80024567]
[1759430333589,0.72431307,120210.0,120200.0,1.12105074]
[1759430333888,0.08821836,120210.0,120200.0,1.12105074]
[1759430334099,0.67317836,120210.0,120200.0,1.52105074]
[1759430334286,0.65120424,120210.0,120200.0,1.52105074]
[1759430334487,0.00852054,120220.0,120210.0,0.1186306]
[1759430334782,1.07524507,120220.0,120210.0,0.43943567]
[1759430335090,1.09725999,120220.0,120210.0,0.43943567]
[1759430335286,0.77645492,120220.0,120210.0,0.43943567]
[1759430335592,1.09725999,120220.0,120210.0,0.43943877]
[1759430335891,1.16298004,120220.0,120210.0,0.43943877]
[1759430336091,1.16298004,120220.0,120210.0,0.1186337]
[1759430336283,1.16298004,120220.0,120210.0,0.43943877]
[1759430337790,1.17144957,120220.0,120210.0,0.43943877]
[1759430338790,1.25458957,120220.0,120200.0,0.37448]
[1759430338997,1.25458957,120220.0,120190.0,0.37448]
[1759430338998,1.44635384,120210.0,120190.0,0.01368]
[1759430339188,1.07520507,120200.0,120190.0,0.0968377]
[1759430339490,1.09721999,120200.0,120190.0,0.4796277]
[1759430339690,1.09721999,120200.0,120190.0,0.80043277]
[1759430339881,1.41802506,120200.0,120190.0,0.4796277]
[1759430340291,1.09721999,120200.0,120190.0,0.4796277]
[1759430340491,1.09721999,120200.0,120190.0,0.80043277]
[1759430340690,0.7544,120200.0,120190.0,0.80043277]
[1759430341296,0.89084356,120220.0,120200.0,0.1184606]
[1759430341596,1.07520507,120210.0,120200.0,0.1184606]
[1759430341790,1.09721132,120210.0,120200.0,0.1184606]
[1759430342390,0.02200625,120210.0,120200.0,0.43926567]
[1759430342589,0.02200625,120210.0,120200.0,1.52087074]
[1759430342789,0.07393379,120220.0,120210.0,0.0964637]
[1759430343093,0.34313371,120240.0,120230.0,0.1184398]
[1759430343293,1.18463714,120240.0,120230.0,0.1184398]
[1759430343494,1.18463714,120240.0,120230.0,0.03531]
[1759430344288,1.27319984,120240.0,120230.0,0.03531]
[1759430344995,0.51859984,120240.0,120230.0,0.03531]
[1759430345195,1.2509112,120240.0,120230.0,0.03531]
[1759430345599,1.2508712,120240.0,120230.0,0.03531]
[1759430345999,0.4962712,120240.0,120230.0,0.03531]
[1759430346197,1.2508712,120240.0,120230.0,0.1184398]
[1759430347800,0.84975452,120240.0,120230.0,0.1184398]
[1759430347999,1.2508712,120240.0,120230.0,0.1184398]
[1759430348200,0.4962712,120240.0,120230.0,0.1184398]
[1759430348402,0.84959452,120240.0,120230.0,0.4792398]
[1759430348696,1.2507112,120240.0,120230.0,0.4792398]
[1759430350101,1.2507112,120240.0,120230.0,0.37412]
[1759430350497,1.2507112,120240.0,120230.0,0.4572498]
[1759430354001,1.2507112,120240.0,120230.0,0.4792398]
[1759430354402,1.22871239,120240.0,120230.0,0.4792398]
[1759430355405,0.47427239,120240.0,120230.0,0.4792398]
[1759430355609,1.22855239,120240.0,120230.0,0.4792398]
[1759430357402,1.15539668,120240.0,120230.0,0.4792398]
[1759430357602,1.23190965,120240.0,120230.0,0.4792398]
[1759430358300,0.83079297,120240.0,120230.0,0.4792398]
[1759430359108,0.85276637,120240.0,120230.0,0.4792398]
[1759430359297,0.83079297,120240.0,120230.0,0.4792398]
[1759430359501,0.85277101,120240.0,120230.0,0.4792398]
[1759430364211,1.17361524,120240.0,120230.0,0.4792398]
[1759430364907,1.17361524,120240.0,120230.0,0.1184398]
[1759430365206,1.49445947,120240.0,120230.0,0.01332]
[1759430365410,1.49445947,120240.0,120230.0,0.0964498]
[1759430366905,1.96071121,120240.0,120230.0,0.01332]
[1759430367311,0.08313,120230.0,120220.0,0.0964562]
[1759430367510,0.08313,120230.0,120220.0,0.0964569]
[1759430367511,0.78675227,120230.0,120220.0,0.0964569]
[1759430367710,0.78675227,120230.0,120210.0,0.0964589]
[1759430367908,1.51902113,120220.0,120210.0,0.01332]
[1759430368111,0.0831439,120210.0,120200.0,0.01332]
[1759430368314,0.78676617,120210.0,120200.0,0.0964708]
[1759430368609,0.70362227,120210.0,120200.0,0.1177408]
[1759430368813,0.78676617,120210.0,120200.0,0.1177408]
[1759430369014,0.78676617,120210.0,120200.0,0.1177407]
[1759430370209,0.78676617,120210.0,120200.0,0.03459]